bitfinex/quotes_BTCUSD_20241128
["timestamp","ask_amount","ask_price","bid_price","bid_amount"]
[1732796876766,0.40580548,95528.0,95527.0,0.03098864]
[1732796876983,0.39880548,95528.0,95527.0,0.03098864]
[1732796877209,0.39580548,95528.0,95527.0,0.03098864]
[1732796877438,0.40180548,95528.0,95527.0,0.03098864]
[1732796877676,0.40480548,95528.0,95527.0,0.03098864]
[1732796877940,0.40480548,95528.0,95527.0,0.0178905]
[1732796878157,0.40180548,95528.0,95527.0,0.03098902]
[1732796878392,0.40480548,95528.0,95527.0,0.03098902]
[1732796878838,0.42780548,95528.0,95527.0,0.03098902]
[1732796880187,0.42780548,95528.0,95527.0,0.03098919]
[1732796880423,0.42780548,95528.0,95527.0,0.03098958]
[1732796880663,0.48166038,95528.0,95527.0,8.9e-07]
[1732796880886,0.254698,95512.0,95511.0,0.0004]
[1732796881096,0.38451679,95512.0,95511.0,0.0004]
[1732796881315,0.38451679,95512.0,95511.0,0.01350046]
[1732796882185,0.38451679,95512.0,95511.0,0.0004]
[1732796883816,0.46484687,95512.0,95511.0,0.0014]
[1732796884032,0.38451679,95512.0,95511.0,0.0014]
[1732796884259,0.66977712,95512.0,95511.0,0.0004]
[1732796884482,0.77260858,95512.0,95511.0,0.0004]
[1732796884733,0.80513099,95512.0,95511.0,0.0004]
[1732796884968,0.297701,95510.0,95509.0,2e-07]
[1732796885177,0.45968221,95510.0,95509.0,2e-07]
[1732796885407,0.50478221,95510.0,95509.0,2e-07]
[1732796885662,0.49478221,95510.0,95509.0,2e-07]
[1732796885865,0.50478221,95510.0,95509.0,2e-07]
[1732796887228,0.51378221,95510.0,95509.0,2e-07]
[1732796887698,0.254715,95497.0,95478.0,0.0758]
[1732796887937,0.254715,95497.0,95455.0,0.0017242]
[1732796887938,0.62459167,95497.0,95469.0,0.0774]
[1732796888230,0.5803595,95497.0,95469.0,0.0774]
[1732796888726,0.277721,95491.0,95490.0,0.0132663]
[1732796888965,0.43976281,95491.0,95490.0,0.0132663]
[1732796889411,0.41676281,95491.0,95490.0,0.0132663]
[1732796890563,0.44506791,95491.0,95490.0,0.0132663]
[1732796890798,0.73976281,95491.0,95490.0,0.0132663]
[1732796891298,0.43505501,95491.0,95490.0,0.0132663]
[1732796891731,0.43805501,95491.0,95490.0,0.0132663]
[1732796892901,0.50885501,95491.0,95490.0,0.0132663]
[1732796893176,0.50885501,95491.0,95490.0,0.00817052]
[1732796893401,0.81885501,95491.0,95490.0,0.00817052]
[1732796893619,0.89745501,95491.0,95490.0,0.00817052]
[1732796895772,0.89745501,95491.0,95490.0,5.2e-07]
[1732796895986,0.90745501,95491.0,95490.0,5.2e-07]
[1732796896625,0.90145501,95491.0,95490.0,5.2e-07]
[1732796896841,0.91045501,95491.0,95490.0,5.2e-07]
[1732796897053,0.90745501,95491.0,95490.0,5.2e-07]
[1732796897700,0.82885501,95491.0,95490.0,5.2e-07]
[1732796897918,0.78105501,95491.0,95490.0,5.2e-07]
[1732796898404,0.77105501,95491.0,95490.0,5.2e-07]
[1732796898620,0.76905501,95491.0,95490.0,5.2e-07]
[1732796898848,0.77905501,95491.0,95490.0,5.2e-07]
[1732796899070,0.77105501,95491.0,95490.0,5.2e-07]
[1732796899508,0.77905501,95491.0,95490.0,5.2e-07]
[1732796899948,0.77105501,95491.0,95490.0,5.2e-07]
[1732796900195,0.87174902,95491.0,95490.0,5.2e-07]
[1732796900416,0.86974902,95491.0,95490.0,5.2e-07]
[1732796900642,0.87874902,95491.0,95490.0,5.2e-07]
[1732796900874,0.86974902,95491.0,95490.0,5.2e-07]
[1732796901084,0.86974902,95491.0,95490.0,0.00086412]
[1732796901085,0.76905501,95491.0,95490.0,0.00086412]
[1732796901294,0.77805501,95491.0,95490.0,0.00086412]
[1732796901940,0.77978221,95491.0,95490.0,0.00086412]
[1732796902586,0.44678221,95491.0,95490.0,0.00086412]
[1732796902821,0.4142598,95491.0,95490.0,0.00086412]
[1732796904225,0.4052598,95491.0,95490.0,0.00086412]
[1732796904460,0.4142598,95491.0,95490.0,0.00086412]
[1732796904673,0.3982598,95491.0,95490.0,0.00086412]
[1732796905112,0.4052598,95491.0,95490.0,0.00086412]
[1732796905549,0.4042598,95491.0,95490.0,0.00086412]
[1732796905988,0.4072598,95491.0,95490.0,0.00086412]
[1732796907371,0.46327453,95491.0,95490.0,0.00086412]
[1732796908270,0.4302598,95491.0,95490.0,0.00086412]
[1732796909589,0.46284215,95491.0,95490.0,0.00086412]
[1732796909806,0.4302598,95491.0,95490.0,0.00086412]
[1732796910084,0.4302598,95491.0,95459.0,0.00982742]
[1732796910085,0.277742,95472.0,95459.0,0.00982742]
[1732796910306,0.277742,95472.0,95455.0,0.0017242]
[1732796910307,0.25476,95456.0,95455.0,0.0017242]
[1732796910524,0.28092917,95456.0,95455.0,0.0017242]
[1732796910770,0.28092917,95456.0,95455.0,0.0817242]
[1732796910771,0.13092917,95456.0,95455.0,0.0817242]
[1732796911003,0.23377438,95456.0,95455.0,0.09010912]
[1732796911231,0.23377438,95456.0,95455.0,0.0817242]
[1732796911451,0.12901438,95456.0,95455.0,0.0817242]
[1732796911688,0.02616917,95456.0,95455.0,0.1305242]
[1732796911913,0.002,95456.0,95455.0,0.14378912]
[1732796912201,0.10676,95456.0,95455.0,0.14378912]
[1732796912420,0.254764,95452.0,95444.0,6e-05]
[1732796912690,0.38437396,95452.0,95444.0,6e-05]
[1732796914216,0.39337396,95452.0,95444.0,6e-05]
[1732796914636,0.38937396,95452.0,95444.0,6e-05]
[1732796914887,0.39837396,95452.0,95444.0,6e-05]
[1732796915103,0.39337396,95452.0,95444.0,6e-05]
[1732796915583,0.39837396,95452.0,95444.0,6e-05]
[1732796915815,0.15144998,95440.0,95429.0,0.12539673]
[1732796916073,0.104784,95435.0,95430.0,0.09302467]
[1732796916301,0.20956,95438.0,95430.0,0.09302467]
[1732796916525,0.15144998,95440.0,95430.0,0.09302467]
[1732796916526,0.15144998,95440.0,95431.0,0.0065539]
[1732796916758,0.104786,95432.0,95431.0,0.0065539]
[1732796916988,0.104786,95432.0,95430.0,0.0801]
[1732796917238,0.003,95440.0,95432.0,0.0826]
[1732796917457,0.209552,95442.0,95433.0,0.00840839]
[1732796917458,0.104776,95442.0,95433.0,0.00840839]
[1732796917676,0.004,95440.0,95434.0,0.00655389]
[1732796917884,0.004,95440.0,95435.0,0.00655389]
[1732796918130,0.15144998,95450.0,95436.0,0.01291987]
[1732796918369,0.209548,95444.0,95437.0,0.00655389]
[1732796918612,0.104778,95439.0,95438.0,0.00655389]
[1732796918828,0.10284521,95449.0,95438.0,0.00655389]
[1732796919044,0.10284521,95449.0,95439.0,0.00655389]
[1732796919259,0.104776,95442.0,95440.0,0.00655389]
[1732796919471,0.104775,95442.0,95441.0,0.00655389]
[1732796919685,0.13013452,95442.0,95441.0,0.00655389]
[1732796920397,0.33968652,95442.0,95441.0,0.08565333]
[1732796921274,0.02535952,95442.0,95441.0,0.09421866]
[1732796921491,0.13013452,95442.0,95441.0,0.09421866]
[1732796922158,0.13013452,95442.0,95441.0,0.08565333]
[1732796922833,0.02535952,95442.0,95441.0,0.23912933]
[1732796923058,0.02646389,95451.0,95441.0,0.13435333]
[1732796923292,0.104767,95450.0,95444.0,0.104772]
[1732796923530,0.209484,95473.0,95445.0,0.01703809]
[1732796923531,0.104771,95447.0,95445.0,0.01703809]
[1732796923801,0.104773,95444.0,95442.0,0.01048476]
[1732796924015,0.104773,95444.0,95443.0,0.00655275]
[1732796924222,0.13123689,95444.0,95443.0,0.00655275]
[1732796924655,0.02646389,95444.0,95443.0,0.0212219]
[1732796924894,0.13123689,95444.0,95443.0,0.00655275]
[1732796925776,0.13123689,95444.0,95443.0,0.00755275]
[1732796928299,0.13123689,95444.0,95443.0,0.00855275]
[1732796928974,0.13123689,95444.0,95443.0,0.00755275]
[1732796929422,0.13123689,95444.0,95443.0,0.00855275]
[1732796930961,0.24640983,95444.0,95443.0,0.002]
[1732796931631,0.24640983,95444.0,95443.0,0.001]
[1732796931845,0.24640983,95444.0,95441.0,0.0008626]
[1732796931846,0.104775,95442.0,95441.0,0.0008626]
[1732796932084,0.23374031,95442.0,95441.0,0.0008626]
[1732796934427,0.1338951,95442.0,95441.0,0.0008626]
[1732796934904,0.1358951,95442.0,95441.0,0.0008626]
[1732796935117,0.1328951,95442.0,95441.0,0.0008626]
[1732796935571,0.1338951,95442.0,95441.0,0.0008626]
[1732796935806,0.23374031,95442.0,95441.0,0.0008626]
[1732796936029,0.23574031,95442.0,95441.0,0.0008626]
[1732796936478,0.23374031,95442.0,95441.0,0.0008626]
[1732796937180,0.1308951,95442.0,95441.0,0.0008626]
[1732796937408,0.1308951,95442.0,95441.0,0.13171594]
[1732796937845,0.0281201,95442.0,95441.0,0.13171594]
[1732796938059,0.1308951,95442.0,95441.0,0.13171594]
[1732796938285,0.0261201,95442.0,95441.0,0.13171594]
[1732796938505,0.0261201,95442.0,95441.0,0.27062023]
[1732796938506,0.0271201,95442.0,95441.0,0.27062023]
[1732796938722,0.0271201,95442.0,95441.0,0.28110484]
[1732796938938,0.0261201,95442.0,95441.0,0.28110484]
[1732796939159,0.104772,95446.0,95441.0,0.28210484]
[1732796939392,0.0017256,95444.0,95442.0,0.03772517]
[1732796939625,0.1064986,95444.0,95443.0,0.00655334]
[1732796939861,0.13295143,95444.0,95443.0,0.00655334]
[1732796941228,0.13102364,95444.0,95441.0,0.0018626]
[1732796941465,0.104775,95442.0,95441.0,0.0018626]
[1732796941658,0.13075499,95442.0,95441.0,0.0008626]
[1732796941921,0.13075499,95442.0,95441.0,0.00741583]
[1732796944233,0.13075499,95442.0,95441.0,0.0074159]
[1732796945811,0.02597999,95442.0,95441.0,0.12123349]
[1732796946042,0.02597999,95442.0,95441.0,0.25947257]
[1732796946265,0.02549498,95443.0,95442.0,0.104775]
[1732796946493,0.02549498,95443.0,95442.0,0.01703801]
[1732796946711,0.02549498,95443.0,95442.0,0.12181301]
[1732796947164,0.02549498,95443.0,95442.0,0.01703801]
[1732796948037,0.02549498,95443.0,95442.0,0.001]
[1732796948253,0.02549498,95443.0,95442.0,0.01803711]
[1732796948712,0.13026898,95443.0,95442.0,0.01803711]
[1732796949396,0.13026898,95443.0,95442.0,0.01903711]
[1732796950337,0.02549498,95443.0,95442.0,0.01903711]
[1732796950594,0.13026898,95443.0,95442.0,0.01903711]
[1732796950819,0.13026898,95443.0,95442.0,0.01248452]
[1732796951041,0.13026898,95443.0,95442.0,0.01903734]
[1732796951951,0.13026898,95443.0,95442.0,0.01903739]
[1732796952166,0.13199458,95443.0,95442.0,0.01903739]
[1732796952861,0.02722058,95443.0,95442.0,0.01903739]
[1732796953054,0.02722058,95443.0,95442.0,0.12381239]
[1732796953981,0.02722058,95443.0,95442.0,0.01903739]
[1732796954212,0.13199458,95443.0,95442.0,0.01903739]
[1732796955790,0.13199458,95443.0,95442.0,0.00855284]
[1732796958058,0.13199458,95443.0,95442.0,0.01903767]
[1732796958332,0.13199458,95443.0,95442.0,0.00855284]
[1732796959047,0.02722058,95443.0,95442.0,0.12474748]
[1732796959307,0.02722058,95443.0,95442.0,0.11819464]
[1732796959550,0.02722058,95443.0,95442.0,0.13523216]
[1732796961828,0.02722058,95443.0,95442.0,0.1370865]
[1732796962065,0.02722058,95443.0,95442.0,0.13523216]
[1732796964327,0.02722058,95443.0,95442.0,0.1370865]
[1732796964541,0.02722058,95443.0,95442.0,0.21288553]
[1732796964822,0.02722058,95443.0,95442.0,0.3068536]
[1732796965041,0.02722058,95443.0,95442.0,0.30499926]
[1732796965498,0.13199458,95443.0,95442.0,0.01803655]
[1732796965990,0.13199458,95443.0,95442.0,0.01703655]
[1732796966202,0.13199458,95443.0,95442.0,0.01803655]
[1732796966425,0.13199458,95443.0,95442.0,0.00855252]
[1732796966642,0.13199458,95443.0,95442.0,0.01903785]
[1732796966856,0.13199458,95443.0,95442.0,0.00855252]
[1732796967072,0.13199458,95443.0,95442.0,0.01903785]
[1732796967290,0.23483979,95443.0,95442.0,0.01903785]
[1732796967538,0.23483979,95443.0,95442.0,0.00755252]
[1732796967803,0.23483979,95443.0,95442.0,0.00655252]
[1732796968022,0.23483979,95443.0,95442.0,0.004]
[1732796968254,0.23483979,95443.0,95441.0,0.0008626]
[1732796968255,0.104775,95442.0,95441.0,0.0008626]
[1732796968484,0.23307735,95442.0,95441.0,0.0008626]
[1732796970794,0.23707735,95442.0,95441.0,0.0008626]
[1732796971521,0.23907735,95442.0,95441.0,0.0008626]
[1732796973186,0.38907735,95442.0,95441.0,0.0008626]
[1732796974135,0.38307735,95442.0,95441.0,0.0008626]
[1732796974377,0.38407735,95442.0,95441.0,0.0008626]
[1732796975045,0.38707735,95442.0,95441.0,0.0008626]
[1732796975504,0.38907735,95442.0,95441.0,0.0008626]
[1732796975754,0.23907735,95442.0,95441.0,0.0008626]
[1732796975999,0.13623214,95442.0,95441.0,0.0008626]
[1732796976739,0.13795774,95442.0,95441.0,0.0008626]
[1732796977193,0.13595774,95442.0,95441.0,0.0008626]
[1732796977675,0.13695774,95442.0,95441.0,0.0008626]
[1732796977899,0.13295774,95442.0,95441.0,0.0008626]
[1732796978133,0.13395774,95442.0,95441.0,0.0008626]
[1732796981737,0.13395774,95442.0,95441.0,0.00741613]
[1732796982437,0.13295774,95442.0,95441.0,0.00741613]
[1732796982913,0.13395774,95442.0,95441.0,0.00741613]
[1732796983386,0.02918274,95442.0,95441.0,0.01588774]
[1732796984077,0.02918274,95442.0,95441.0,0.11219213]
[1732796984325,0.02818274,95442.0,95441.0,0.26045623]
[1732796984542,0.02918274,95442.0,95441.0,0.36504177]
[1732796984757,0.02918274,95442.0,95441.0,0.37741274]
[1732796984939,0.02818274,95442.0,95441.0,0.37741274]
[1732796985228,0.02818274,95442.0,95441.0,0.37841274]
[1732796985454,0.02818274,95442.0,95441.0,0.37058478]
[1732796985664,0.02718274,95442.0,95441.0,0.37740658]
[1732796986117,0.02818274,95442.0,95441.0,0.38340658]
[1732796986346,0.02718274,95442.0,95441.0,0.37840658]
[1732796986790,0.02818274,95442.0,95441.0,0.38340658]
[1732796987486,0.02818274,95442.0,95441.0,0.38240658]
[1732796987966,0.02918274,95442.0,95441.0,0.38540658]
[1732796988425,0.02918274,95442.0,95441.0,0.29148242]
[1732796989794,0.02918274,95442.0,95441.0,0.38540658]
[1732796990523,0.02918274,95442.0,95441.0,0.3728917]
[1732796991625,0.02918274,95442.0,95441.0,0.3828917]
[1732796991880,0.02918274,95442.0,95441.0,0.37279577]
[1732796992126,0.02918274,95442.0,95441.0,0.38279577]
[1732796992351,0.02918274,95442.0,95441.0,0.37279569]
[1732796994387,0.02918274,95442.0,95441.0,0.31162472]
[1732796995303,0.02918274,95442.0,95441.0,0.30380292]
[1732796995537,0.02918274,95442.0,95441.0,0.31161664]
[1732796995756,0.02918274,95442.0,95441.0,0.28676683]
[1732796995992,0.02918274,95442.0,95441.0,0.30113305]
[1732796996217,0.02918274,95442.0,95441.0,0.20730482]
[1732796996501,0.02918274,95442.0,95441.0,0.21778854]
[1732796996722,0.02918274,95442.0,95441.0,0.31161677]
[1732796997373,0.02918274,95442.0,95441.0,0.21778854]
[1732796997812,0.0017256,95443.0,95442.0,0.150775]
[1732796998065,0.02839877,95443.0,95442.0,0.75101325]
[1732796998295,0.0017256,95444.0,95443.0,0.137774]
[1732796998572,0.0017256,95444.0,95443.0,0.68534438]
[1732796998813,0.02839877,95444.0,95443.0,0.69315827]
[1732796999032,0.0017256,95444.0,95443.0,0.69315827]
[1732796999900,0.0027256,95444.0,95443.0,0.69615827]
[1732797000367,0.0027256,95444.0,95443.0,0.93049913]
[1732797000576,0.0037256,95444.0,95443.0,0.71115827]
[1732797000817,0.0037256,95444.0,95443.0,0.86086984]
[1732797001518,0.0027256,95444.0,95443.0,0.85786984]
[1732797001961,0.0037256,95444.0,95443.0,0.85786984]
[1732797002196,0.0027256,95444.0,95443.0,0.85786984]
[1732797002439,0.0017256,95444.0,95443.0,0.86186984]
[1732797002660,0.0017256,95444.0,95443.0,0.86686984]
[1732797002921,0.0027256,95444.0,95443.0,0.86686984]
[1732797004311,0.0027256,95444.0,95443.0,0.57102463]
[1732797004532,0.0027256,95444.0,95443.0,0.48962463]
[1732797004781,0.0027256,95444.0,95443.0,0.2841137]
[1732797005002,0.0027256,95444.0,95443.0,0.14361507]
[1732797005217,0.0027256,95444.0,95443.0,0.14546937]
[1732797005659,0.0017256,95444.0,95443.0,0.13146937]
[1732797005895,0.0017256,95444.0,95443.0,0.13346937]
[1732797006108,0.0017256,95444.0,95443.0,0.13746937]
[1732797006377,0.0017256,95444.0,95443.0,0.13346937]
[1732797006613,0.0017256,95444.0,95443.0,0.40579718]
[1732797006846,0.0017256,95444.0,95443.0,0.21941507]
[1732797007535,0.0017256,95444.0,95443.0,0.21141507]
[1732797007747,0.0017256,95444.0,95443.0,0.2132692]
[1732797008220,0.0017256,95444.0,95443.0,0.2092692]
[1732797008434,0.0017256,95444.0,95443.0,0.21427017]
[1732797008909,0.0017256,95444.0,95443.0,0.20927017]
[1732797009129,0.0017256,95444.0,95443.0,0.21827017]
[1732797009317,0.0017256,95444.0,95443.0,0.20741604]
[1732797009580,0.0027256,95444.0,95443.0,0.21527018]
[1732797009802,0.0027256,95444.0,95443.0,0.22427018]
[1732797010015,0.0027256,95444.0,95443.0,0.22241604]
[1732797010977,0.0027256,95444.0,95443.0,0.197574]
[1732797011201,0.0027256,95444.0,95443.0,0.20723905]
[1732797011632,0.0027256,95444.0,95443.0,0.2093085]
[1732797011894,0.0027256,95444.0,95443.0,0.35170542]
[1732797012125,0.0027256,95444.0,95443.0,0.4336132]
[1732797012342,0.0027256,95444.0,95443.0,0.23700231]
[1732797012572,0.0027256,95444.0,95443.0,0.15324172]
[1732797012804,0.0027256,95444.0,95443.0,0.02241441]
[1732797013018,0.0027256,95444.0,95443.0,0.14422301]
[1732797013914,0.0027256,95444.0,95443.0,0.22797729]
[1732797014144,0.0027256,95444.0,95443.0,0.14422301]
[1732797014366,0.0027256,95444.0,95443.0,0.14607725]
[1732797015500,0.0027256,95444.0,95443.0,0.14422301]
[1732797015778,0.1074986,95444.0,95443.0,0.03944901]
[1732797016233,0.1074986,95444.0,95443.0,0.03945169]
[1732797016434,0.1074986,95444.0,95443.0,0.02896721]
[1732797017098,0.1074986,95444.0,95443.0,0.01996721]
[1732797017327,0.1074986,95444.0,95443.0,0.02196721]
[1732797018409,0.1064986,95444.0,95443.0,0.01596721]
[1732797019534,0.1064986,95444.0,95443.0,0.01796721]
[1732797020399,0.1064986,95444.0,95443.0,0.02796721]
[1732797020852,0.1064986,95444.0,95443.0,0.02141441]
[1732797021074,0.1064986,95444.0,95443.0,0.01941441]
[1732797021507,0.1064986,95444.0,95443.0,0.01741441]
[1732797022197,0.20934381,95444.0,95443.0,0.01741441]
[1732797022421,0.1064986,95444.0,95443.0,0.0108627]
[1732797023823,0.1074986,95444.0,95443.0,0.0108627]
[1732797024061,0.0027256,95444.0,95443.0,0.12728703]
[1732797024787,0.0027256,95444.0,95443.0,0.14628254]
[1732797025060,0.0017252,95456.0,95455.0,0.104761]
[1732797025265,0.0017252,95456.0,95455.0,0.2923143]
[1732797025719,0.0017252,95456.0,95455.0,0.19861352]
[1732797025950,0.0017252,95456.0,95455.0,0.21554115]
[1732797026174,0.0017252,95456.0,95455.0,0.21553974]
[1732797026417,0.0027252,95456.0,95455.0,0.21557974]
[1732797026872,0.0027252,95456.0,95455.0,0.35613091]
[1732797027119,0.0027252,95456.0,95455.0,0.35107589]
[1732797027361,0.0027252,95456.0,95455.0,0.69686986]
[1732797027598,0.0027252,95456.0,95455.0,0.360081]
[1732797030153,0.0027252,95456.0,95455.0,0.56532268]
[1732797030354,0.0027252,95456.0,95455.0,0.75264748]
[1732797030569,0.0027252,95456.0,95455.0,0.5778096]
[1732797031047,0.104739,95476.0,95455.0,0.5778096]
[1732797031048,0.104739,95476.0,95472.0,0.0072748]
[1732797031272,0.104739,95476.0,95473.0,0.01165033]
[1732797031732,0.209474,95478.0,95473.0,0.01165033]
[1732797031977,0.10474,95474.0,95473.0,0.01165033]
[1732797032214,0.104738,95476.0,95473.0,0.01165033]
[1732797032437,0.104738,95477.0,95473.0,0.01165033]
[1732797032671,0.104738,95477.0,95474.0,0.01692763]
[1732797032907,0.104738,95476.0,95474.0,0.01692763]
[1732797033135,0.104736,95478.0,95474.0,0.01692763]
[1732797033393,0.001,95478.0,95477.0,0.104737]
[1732797033634,0.001,95478.0,95477.0,0.11638733]
[1732797034129,0.001,95478.0,95477.0,0.104737]
[1732797034350,0.001,95478.0,95477.0,0.10659062]
[1732797034791,0.003,95478.0,95477.0,0.10659062]
[1732797035008,0.001,95478.0,95477.0,0.00185362]
[1732797035302,0.15144998,95490.0,95472.0,0.0091285]
[1732797035550,0.15144998,95482.0,95472.0,0.0072748]
[1732797035779,0.104735,95479.0,95474.0,0.104739]
[1732797036248,0.209465,95481.0,95472.0,0.00912855]
[1732797036472,0.15144998,95482.0,95477.0,0.004]
[1732797036692,0.15144998,95482.0,95473.0,0.00185373]
[1732797036914,0.104738,95477.0,95473.0,0.00185373]
[1732797037134,0.104738,95477.0,95474.0,0.001]
[1732797037395,0.0017252,95478.0,95474.0,0.104739]
[1732797037606,0.0017252,95478.0,95474.0,0.10474]
[1732797038775,0.0017252,95478.0,95474.0,0.10574]
[1732797039235,0.0017252,95478.0,95474.0,0.10474]
[1732797039935,0.0017252,95478.0,95473.0,0.002]
[1732797040186,0.0017252,95478.0,95474.0,0.105739]
[1732797040402,0.1064612,95478.0,95474.0,0.105739]
[1732797040614,0.1064612,95478.0,95474.0,0.106739]
[1732797040852,0.104739,95475.0,95474.0,0.002]
[1732797041070,0.0017252,95478.0,95475.0,0.104739]
[1732797041571,0.0017252,95478.0,95477.0,0.104737]
[1732797043112,0.0017252,95478.0,95477.0,0.105737]
[1732797043342,0.0017252,95478.0,95477.0,0.10759062]
[1732797044434,0.0017252,95478.0,95477.0,0.001]
[1732797044435,0.1064612,95478.0,95477.0,0.001]
[1732797044900,0.1064612,95478.0,95477.0,0.002]
[1732797045772,0.0017252,95478.0,95477.0,0.106737]
[1732797045987,0.0017252,95478.0,95477.0,0.18489059]
[1732797047556,0.0017252,95478.0,95477.0,0.2977358]
[1732797047814,0.0017252,95478.0,95477.0,0.29588221]
[1732797048671,0.0017252,95478.0,95477.0,0.29388221]
[1732797049616,0.0017252,95478.0,95477.0,0.30741741]
[1732797050354,0.0017252,95478.0,95477.0,0.31341741]
[1732797051498,0.00994,95506.0,95490.0,0.104723]
[1732797051734,0.00994,95506.0,95490.0,0.10657622]
[1732797053163,0.114646,95506.0,95490.0,0.10657622]
[1732797053386,0.00994,95506.0,95490.0,0.10657622]
[1732797053605,0.00994,95506.0,95490.0,0.10757622]
[1732797054502,0.104707,95505.0,95490.0,0.10757622]
[1732797054949,0.00994,95506.0,95490.0,0.10757622]
[1732797055173,0.104706,95505.0,95490.0,0.12025022]
[1732797055830,0.00994,95506.0,95490.0,0.12025022]
[1732797056041,0.104709,95503.0,95490.0,0.12025022]
[1732797056286,0.10471,95502.0,95490.0,0.12025022]
[1732797056507,0.104708,95503.0,95490.0,0.12025022]
[1732797058101,0.10471,95502.0,95490.0,0.12025022]
[1732797058284,0.104708,95504.0,95490.0,0.12025022]
[1732797058961,0.00994,95506.0,95490.0,0.12025022]
[1732797059171,0.104708,95503.0,95490.0,0.12025022]
[1732797060286,0.209414,95505.0,95490.0,0.12025022]
[1732797060747,0.00994,95506.0,95490.0,0.12025022]
[1732797060748,0.104708,95504.0,95490.0,0.12025022]
[1732797061415,0.209415,95505.0,95490.0,0.12025022]
[1732797061668,0.209441,95493.0,95490.0,0.00285322]
[1732797061891,0.209441,95493.0,95490.0,0.001]
[1732797061892,0.2338482,95491.0,95490.0,0.001]
[1732797062130,0.33669341,95491.0,95490.0,0.001]
[1732797063443,0.104737,95477.0,95472.0,0.0072748]
[1732797063659,0.10474,95475.0,95472.0,0.0072748]
[1732797064131,0.104738,95476.0,95472.0,0.0072748]
[1732797065028,0.209471,95479.0,95472.0,0.0072748]
[1732797065274,0.104741,95473.0,95472.0,0.0072748]
[1732797065535,0.10474,95475.0,95472.0,0.0072748]
[1732797065769,0.104741,95473.0,95472.0,0.0092748]
[1732797065994,0.104741,95473.0,95472.0,0.01382539]
[1732797066230,0.104739,95475.0,95472.0,0.01482539]
[1732797066449,0.15180075,95490.0,95472.0,0.0082748]
[1732797066691,0.0017272,95491.0,95490.0,0.104723]
[1732797067134,0.0017272,95491.0,95490.0,0.1065764]
[1732797067611,0.0017272,95491.0,95490.0,0.0018534]
[1732797068082,0.0017272,95491.0,95490.0,0.104723]
[1732797068739,0.0017272,95491.0,95490.0,0.11127232]
[1732797069193,0.0017272,95491.0,95490.0,0.00654932]
[1732797069675,0.314169,95490.0,95478.0,0.19824666]
[1732797069890,0.314169,95490.0,95479.0,0.00185357]
[1732797069891,0.15180075,95490.0,95479.0,0.00185357]
[1732797070126,0.104727,95486.0,95482.0,0.10473]
[1732797070353,0.104727,95486.0,95480.0,0.209467]
[1732797070772,0.104727,95486.0,95482.0,0.104731]
[1732797071679,0.0017272,95491.0,95490.0,0.104723]
[1732797072157,0.0017272,95491.0,95490.0,0.10657634]
[1732797073793,0.0017272,95491.0,95490.0,0.00185334]
[1732797074028,0.1064482,95491.0,95490.0,0.00654913]
[1732797074507,0.10473,95483.0,95482.0,0.002]
[1732797074734,0.104733,95481.0,95478.0,0.0008623]
[1732797074948,0.104732,95482.0,95478.0,0.0008623]
[1732797075178,0.104735,95479.0,95478.0,0.0008623]
[1732797075415,0.209446,95490.0,95478.0,0.0008623]
[1732797075416,0.104733,95480.0,95479.0,0.0065501]
[1732797075639,0.209463,95482.0,95479.0,0.0065501]
[1732797075869,0.104732,95481.0,95479.0,0.0065501]
[1732797076086,0.104733,95480.0,95479.0,0.0065501]
[1732797076317,0.10473,95484.0,95479.0,0.0065501]
[1732797076544,0.10473,95483.0,95479.0,0.104734]
[1732797076766,0.10473,95483.0,95478.0,0.0008623]
[1732797076975,0.104732,95482.0,95478.0,0.0008623]
[1732797077221,0.104731,95483.0,95478.0,0.0008623]
[1732797077434,0.104731,95483.0,95479.0,0.0065501]
[1732797077646,0.104732,95482.0,95480.0,0.0065501]
[1732797077854,0.104732,95482.0,95481.0,0.0065501]
[1732797078305,0.105732,95482.0,95481.0,0.0065501]
[1732797078528,0.104732,95482.0,95481.0,0.0065501]
[1732797078968,0.104725,95488.0,95482.0,0.104731]
[1732797079218,0.0017272,95491.0,95483.0,0.00185362]
[1732797079419,0.0017272,95491.0,95490.0,0.104723]
[1732797079632,0.0017272,95491.0,95490.0,0.10657632]
[1732797079934,0.0017272,95491.0,95490.0,0.11312604]
[1732797080148,0.0017272,95491.0,95490.0,0.20704014]
[1732797080390,0.0017272,95491.0,95490.0,0.11312604]
[1732797080612,0.0017272,95491.0,95490.0,0.20702857]
[1732797081248,0.0017272,95491.0,95490.0,0.11312604]
[1732797081657,0.0027272,95491.0,95490.0,0.11312604]
[1732797082788,0.0027272,95491.0,95490.0,0.30987378]
[1732797083013,0.0017272,95491.0,95490.0,0.34659842]
[1732797083241,0.0017272,95491.0,95490.0,0.21411793]
[1732797083451,0.0027272,95491.0,95490.0,0.45777184]
[1732797083689,0.0027272,95491.0,95490.0,0.36352637]
[1732797083892,0.0027272,95491.0,95490.0,0.11088921]
[1732797083893,0.1074482,95491.0,95490.0,0.11088921]
[1732797084099,0.1074482,95491.0,95490.0,0.00654972]
[1732797084321,0.104727,95487.0,95479.0,0.01047984]
[1732797084550,0.209446,95490.0,95478.0,0.09472426]
[1732797084551,0.36124675,95490.0,95480.0,0.01888329]
[1732797084760,0.25652375,95490.0,95482.0,0.104731]
[1732797085004,0.0017272,95491.0,95478.0,0.09472426]
[1732797085005,0.0027272,95491.0,95483.0,0.01888324]
[1732797085226,0.0027272,95491.0,95484.0,0.00654987]
[1732797085431,0.0027272,95491.0,95485.0,0.01233315]
[1732797085641,0.0017272,95491.0,95484.0,0.00840337]
[1732797085846,0.0017272,95491.0,95485.0,0.01047968]
[1732797086047,0.1064492,95491.0,95486.0,0.00654987]
[1732797086276,0.0017272,95491.0,95487.0,0.00654987]
[1732797086492,0.1064482,95491.0,95488.0,0.00654987]
[1732797086944,0.0017272,95491.0,95489.0,0.08234987]
[1732797087160,0.0017272,95491.0,95490.0,0.00840326]
[1732797087623,0.0017272,95491.0,95490.0,0.00654987]
[1732797087829,0.0017272,95491.0,95490.0,0.01888295]
[1732797088728,0.0017272,95491.0,95490.0,0.01702955]
[1732797089169,0.0017272,95491.0,95490.0,0.01802955]
[1732797089388,0.0017272,95491.0,95490.0,0.01902955]
[1732797089867,0.0017272,95491.0,95490.0,0.002]
[1732797090099,0.0017272,95491.0,95490.0,0.01902808]
[1732797092947,0.0017272,95491.0,95490.0,0.02088147]
[1732797094681,0.0017272,95491.0,95490.0,0.01988147]
[1732797095116,0.1064482,95491.0,95490.0,0.02188147]
[1732797095606,0.1064482,95491.0,95490.0,0.02088147]
[1732797095832,0.1064482,95491.0,95490.0,0.01040265]
[1732797096052,0.1064482,95491.0,95490.0,0.01140265]
[1732797096284,0.1064482,95491.0,95490.0,0.01240265]
[1732797096721,0.1064482,95491.0,95490.0,0.02288229]
[1732797096937,0.1064482,95491.0,95490.0,0.01988229]